bitfinex-derivatives/quotes_ETHF0:USTF0_20250502
["timestamp","ask_amount","ask_price","bid_price","bid_amount"]
[1746169696557,1.09387,1827.9,1827.8,32.51478064]
[1746169696756,6.63497,1827.9,1827.8,32.51478064]
[1746169697557,3.2078,1828.0,1827.9,1.09387]
[1746169697759,3.2078,1828.0,1827.9,29.99065064]
[1746169697953,3.2078,1828.0,1827.9,31.88785064]
[1746169698755,1.09387,1827.9,1827.8,3.618]
[1746169698952,3.615,1827.9,1827.4,6.8258]
[1746169699149,1.09401,1827.7,1827.6,28.89678064]
[1746169699349,1.09401,1827.7,1827.5,4.58819]
[1746169699549,1.09401,1827.7,1827.6,28.89678064]
[1746169699745,2.87891,1827.7,1827.5,4.58819]
[1746169699958,2.87891,1827.7,1827.6,28.89678064]
[1746169700349,1.7849,1827.7,1827.5,3.4941]
[1746169700549,2.87889,1827.7,1827.6,28.89678064]
[1746169700754,2.87889,1827.7,1827.5,4.5882]
[1746169700954,2.87889,1827.7,1827.6,28.89678064]
[1746169701153,2.87889,1827.7,1827.5,4.5882]
[1746169701355,2.87889,1827.7,1827.6,28.89678064]
[1746169701557,2.87893,1827.7,1827.5,4.58821]
[1746169701761,1.8383,1827.6,1827.5,4.58821]
[1746169701952,1.8383,1827.6,1827.2,3.2078]
[1746169702153,1.09423,1827.3,1827.2,28.89678064]
[1746169702753,1.09429,1827.2,1827.1,46.2425]
[1746169702959,1.8383,1827.2,1826.9,3.2078]
[1746169703253,1.09441,1827.0,1826.9,3.2078]
[1746169703455,1.09441,1827.0,1826.8,46.2425]
[1746169703654,2.93271,1827.0,1826.9,28.89678064]
[1746169703856,2.93271,1827.0,1826.9,30.72028064]
[1746169704055,2.93271,1827.0,1826.9,1.8235]
[1746169705061,1.8383,1827.0,1826.7,49.22318]
[1746169705265,2.93275,1827.0,1826.8,29.99131064]
[1746169705459,2.93275,1827.0,1826.8,30.81508064]
[1746169705758,2.93275,1827.0,1826.9,1.9183]
[1746169705958,1.8383,1827.0,1826.9,1.9183]
[1746169706261,1.8383,1827.0,1826.9,3.01277]
[1746169706464,3.2078,1827.1,1826.9,31.90955064]
[1746169706663,2.89367,1827.3,1827.1,1.09433]
[1746169706864,2.89367,1827.3,1827.2,1.9183]
[1746169708062,4.71831,1827.4,1827.2,3.01259]
[1746169708257,1.09423,1827.3,1827.2,1.9183]
[1746169709062,6.58361,1827.4,1827.2,3.01259]
[1746169709463,6.58361,1827.4,1827.3,1.9183]
[1746169710064,10.27961,1827.4,1827.3,1.9183]
[1746169711465,1.09427,1827.3,1827.0,5.481]
[1746169711667,2.89257,1827.3,1827.1,1.0943]
[1746169711866,1.7983,1827.3,1827.2,29.99107064]
[1746169712564,3.2078,1827.5,1827.4,1.09417]
[1746169712766,2.89239,1827.6,1827.4,29.99095064]
[1746169713564,2.89239,1827.6,1827.5,28.89678064]
[1746169713764,1.7983,1827.6,1827.5,29.99089064]
[1746169714169,2.89235,1827.6,1827.5,28.89678064]
[1746169716058,6.58835,1827.6,1827.5,28.89678064]
[1746169717070,1.09417,1827.4,1827.3,4.68621]
[1746169717272,1.09417,1827.4,1827.3,32.48878064]
[1746169717667,2.99637,1827.4,1827.3,32.48878064]
[1746169717868,2.99637,1827.4,1827.3,3.592]
[1746169718170,6.69237,1827.4,1827.3,3.592]
[1746169718671,8.46417,1827.4,1827.3,3.592]
[1746169720172,4.76817,1827.4,1827.3,3.592]
[1746169721173,1.09429,1827.2,1827.1,3.592]
[1746169721375,1.09429,1827.2,1827.1,32.48878064]
[1746169721874,2.99669,1827.2,1827.1,32.48878064]
[1746169722866,1.9024,1827.2,1827.0,3.592]
[1746169723066,2.98975,1827.1,1827.0,6.65091]
[1746169723468,2.98975,1827.1,1827.0,35.54769064]
[1746169724275,1.8954,1827.1,1827.0,35.54769064]
[1746169725077,1.09434,1827.2,1827.0,35.54769064]
[1746169725273,1.09434,1827.2,1827.1,30.86128064]
[1746169727975,1.09434,1827.2,1827.1,31.95563064]
[1746169728478,6.19743,1827.3,1827.1,31.95559064]
[1746169728676,4.30203,1827.3,1827.2,30.80308064]
[1746169728867,4.30203,1827.3,1827.2,32.68438064]
[1746169729375,6.27233,1827.3,1827.2,32.68438064]
[1746169730375,3.06453,1827.3,1827.2,32.68438064]
[1746169731477,3.06453,1827.3,1827.2,30.77808064]
[1746169731680,1.09429,1827.2,1827.1,1.9055]
[1746169731874,1.09435,1827.1,1827.0,3.592]
[1746169732174,4.85845,1827.1,1827.0,32.48878064]
[1746169732581,6.65895,1827.1,1827.0,32.48878064]
[1746169733077,10.35495,1827.1,1827.0,3.592]
[1746169733881,1.09447,1826.9,1826.8,3.2078]
[1746169734180,1.09455,1826.8,1826.6,1.09459]
[1746169734381,7.99832,1826.9,1826.7,29.99137064]
[1746169734582,9.79877,1826.9,1826.8,31.84931064]
[1746169734879,8.7043,1826.9,1826.8,33.79231064]
[1746169735075,5.0083,1826.9,1826.8,33.79231064]
[1746169735681,1.8005,1826.9,1826.8,33.79231064]
[1746169735980,5.838,1827.2,1826.9,1.09443]
[1746169736178,1.7947,1827.1,1826.8,1.858]
[1746169736384,1.09446,1827.0,1826.9,28.89678064]
[1746169737172,3.03716,1827.0,1826.9,28.89678064]
[1746169737373,1.09449,1826.9,1826.7,1.09455]
[1746169737671,1.09449,1826.9,1826.8,28.89678064]
[1746169737672,1.7947,1826.9,1826.8,28.89678064]
[1746169737872,1.7947,1826.9,1826.8,29.99131064]
[1746169738380,1.7947,1826.9,1826.8,28.89678064]
[1746169738581,2.88917,1826.9,1826.8,28.89678064]
[1746169739276,1.09453,1826.8,1826.6,1.09462]
[1746169739480,1.09461,1826.7,1826.5,7.1281]
[1746169739780,1.7837,1826.6,1826.5,40.71259064]
[1746169740177,2.87835,1826.6,1826.5,43.31388064]
[1746169740475,1.7837,1826.6,1826.5,12.30401]
[1746169740780,6.08615,1826.6,1826.5,3.696]
[1746169740976,4.9915,1826.6,1826.5,3.696]
[1746169741185,1.7837,1826.6,1826.4,1.09475]
[1746169741374,1.7837,1826.6,1826.5,31.94049064]
[1746169741574,1.7837,1826.6,1826.5,30.84578064]
[1746169741575,2.87835,1826.6,1826.5,30.84578064]
[1746169741878,1.09478,1826.4,1826.2,43.83938]
[1746169742180,1.8207,1826.5,1826.4,28.89678064]
[1746169742377,2.91541,1826.5,1826.4,28.89678064]
[1746169742568,1.8207,1826.5,1826.4,28.89678064]
[1746169743173,2.91541,1826.5,1826.4,30.77318064]
[1746169743675,1.09479,1826.4,1826.2,45.78837]
[1746169743870,2.91541,1826.5,1826.4,28.89678064]
[1746169744272,1.09477,1826.4,1826.3,1.9216]
[1746169744471,3.04337,1826.4,1826.3,30.81838064]
[1746169745074,4.84077,1826.4,1826.3,28.89678064]
[1746169745273,1.09483,1826.3,1826.2,3.8935]
[1746169745478,3.04343,1826.3,1826.2,32.79028064]
[1746169745874,3.04343,1826.3,1825.5,3.2078]
[1746169745875,6.9486,1826.3,1825.5,3.2078]
[1746169746075,1.09518,1825.8,1825.6,28.89678064]
[1746169746278,4.30291,1825.9,1825.6,29.99201064]
[1746169746481,3.04373,1825.8,1825.7,28.89678064]
[1746169746676,5.1291,1826.1,1825.8,28.89678064]
[1746169746888,1.09507,1825.9,1825.7,1.09517]
[1746169747074,1.09507,1825.9,1825.7,3.05077]
[1746169747277,3.04367,1826.0,1825.8,27.48930064]
[1746169747477,4.30273,1826.2,1825.9,28.58433064]
[1746169747672,3.00795,1826.1,1826.0,27.48930064]
[1746169748080,1.09504,1826.0,1825.8,1.9556]
[1746169748278,4.30287,1825.9,1825.8,29.44490064]
[1746169748474,5.1208,1826.0,1825.8,29.44490064]
[1746169748680,1.09511,1825.9,1825.7,3.7482]
[1746169748883,1.913,1825.9,1825.8,27.48930064]
[1746169749085,3.00807,1825.9,1825.8,27.48930064]
[1746169749285,3.00807,1825.9,1825.8,1.9556]
[1746169749779,3.00807,1825.9,1825.8,29.44490064]
[1746169752983,3.00807,1825.9,1825.8,1.9556]
[1746169753187,1.09517,1825.8,1825.5,3.2078]
[1746169753486,4.85717,1825.8,1825.6,27.48930064]
[1746169753687,4.85717,1825.8,1825.6,29.35810064]
[1746169753987,1.9013,1825.7,1825.5,5.0418]
[1746169754285,4.30305,1825.6,1825.5,27.48930064]
[1746169754588,2.99649,1825.7,1825.6,27.48930064]
[1746169754881,2.99649,1825.7,1825.6,29.32330064]
[1746169755073,2.99649,1825.7,1825.6,27.48930064]
[1746169756388,1.09519,1825.7,1825.6,27.48930064]
[1746169756687,1.09519,1825.7,1825.6,29.31600064]
[1746169756890,1.09519,1825.7,1825.4,1.09535]
[1746169756891,1.09527,1825.6,1825.4,1.09535]
[1746169757087,1.09527,1825.6,1825.5,27.48930064]
[1746169757483,1.09531,1825.5,1825.4,44.5917]
[1746169757883,1.09531,1825.5,1825.4,73.17637064]
[1746169758085,4.3031,1825.6,1825.4,32.37637064]
[1746169758285,1.09531,1825.5,1825.3,1.09538]
[1746169758485,3.2078,1825.6,1825.5,28.58461064]
[1746169758683,3.2078,1825.8,1825.6,1.09525]
[1746169758886,4.30296,1825.8,1825.7,1.965]
[1746169760385,3.2078,1825.8,1825.7,4.88209]
[1746169760586,3.2078,1825.8,1825.7,32.37139064]
[1746169760785,3.2078,1825.8,1825.7,31.27620064]
[1746169760786,4.30293,1825.8,1825.7,31.27620064]
[1746169761793,3.2078,1825.8,1825.7,32.37139064]
[1746169762089,6.82004355,1826.3,1825.7,43.18000064]
[1746169762292,1.095,1826.1,1826.0,27.48930064]
[1746169762883,1.095,1826.1,1826.0,33.13450064]
[1746169763687,3.2078,1826.2,1826.1,1.09495]
[1746169764000,4.30269,1826.2,1826.1,29.34720064]
[1746169764989,4.30269,1826.2,1826.1,1.8579]
[1746169765189,1.09495,1826.1,1826.0,3.7873]
[1746169765389,3.2078,1826.2,1825.7,1.09516]
[1746169765587,1.0951,1825.9,1825.8,29.43810064]
[1746169765787,1.0951,1825.9,1825.8,3.8993]
[1746169765994,1.0951,1825.9,1825.8,31.38860064]
[1746169766387,3.2078,1826.0,1825.8,31.38860064]
[1746169766587,3.2078,1826.0,1825.9,30.53487064]
[1746169767086,3.2078,1826.0,1825.9,29.43980064]
[1746169767291,4.30281,1826.0,1825.9,29.43980064]
[1746169767594,3.2078,1826.0,1825.9,30.53487064]
[1746169767995,4.30281,1826.0,1825.9,29.43980064]
[1746169768187,4.30281,1826.0,1825.9,5.5425]
[1746169768388,3.2078,1826.0,1825.3,44.0078]
[1746169768587,4.30293,1825.8,1825.7,27.48930064]
[1746169769193,3.2078,1825.8,1825.7,28.58449064]
[1746169769400,4.30293,1825.8,1825.7,28.58449064]
[1746169770495,3.2078,1825.8,1825.7,28.58449064]
[1746169770997,1.09511,1825.9,1825.7,27.48930064]
[1746169771189,1.09511,1825.9,1825.8,31.16020064]
[1746169771585,1.09511,1825.9,1825.8,3.6709]
[1746169772394,1.09511,1825.9,1825.8,1.7988]
[1746169772597,5.0,1825.9,1825.5,5.6349]
[1746169772897,10.961,1826.0,1825.5,33.12420064]
[1746169772898,1.09525,1825.6,1825.5,33.12420064]
[1746169773495,2.73814,1825.6,1825.3,3.2078]
[1746169773691,1.09566,1825.0,1824.5,0.01188979]
[1746169773893,6.93343,1825.3,1824.9,27.48930064]
[1746169774092,3.2078,1825.4,1825.2,27.48930064]
[1746169774292,2.94463,1825.3,1825.2,27.48930064]
[1746169774487,1.8492,1825.3,1825.0,3.7651]
[1746169774697,2.94463,1825.3,1825.2,27.48930064]
[1746169774894,1.0955,1825.2,1825.1,27.48930064]
[1746169775199,6.1981,1825.2,1825.1,27.48930064]
[1746169775396,1.09558,1825.1,1824.8,46.506]
[1746169775597,1.09585,1824.6,1824.5,0.01188979]
[1746169775801,3.2078,1824.9,1824.7,27.48930064]
[1746169775994,4.30339,1825.1,1824.8,28.58499064]
[1746169776195,4.30327,1825.3,1825.2,27.48930064]
[1746169776702,3.2078,1825.3,1825.0,1.09556]
[1746169776907,3.2078,1825.3,1825.2,27.48930064]
[1746169777199,7.99136,1825.5,1825.2,27.48930064]
[1746169777408,6.896,1825.5,1825.3,29.35500064]
[1746169777590,6.47544,1825.4,1824.0,54.36138332]
[1746169777792,3.2078,1825.1,1824.8,27.48930064]
[1746169777994,1.09567,1824.9,1824.8,27.48930064]
[1746169778296,9.68399,1824.9,1824.2,0.01364043]
[1746169778497,3.2078,1824.7,1824.4,1.09596]
[1746169778798,5.1253,1825.0,1824.2,3.22144043]
[1746169779004,4.30383,1824.3,1824.2,0.01364043]
[1746169779196,1.09603,1824.3,1824.2,0.01364043]
[1746169779391,1.09603,1824.3,1824.2,4.3e-07]
[1746169779593,1.09651,1823.5,1823.4,14.67665976]
[1746169779794,4.30431,1823.5,1823.4,1.32321976]
[1746169779996,1.09663,1823.3,1823.2,24.06920832]
[1746169780203,4.30443,1823.3,1823.2,22.82333832]
[1746169780400,9.30443,1823.3,1823.2,18.28719832]
[1746169780600,1.09669,1823.2,1823.0,32.46707004]
[1746169780800,1.09669,1823.2,1823.1,28.10241766]
[1746169781196,6.09669,1823.2,1823.1,25.66787766]
[1746169781408,1.09669,1823.2,1823.1,25.66787766]
[1746169781900,6.09669,1823.2,1823.1,8.54670393]
[1746169782105,6.09669,1823.2,1823.1,5.69836393]
[1746169782306,9.79269,1823.2,1823.1,5.69836393]
[1746169782504,1.09675,1823.1,1823.0,30.94494004]
[1746169782801,1.09723,1822.3,1822.2,36.44705446]
[1746169782997,4.30564,1821.3,1821.2,18.78900091]
[1746169783196,11.2848,1821.3,1820.1,3.2078]
[1746169783399,6.9038,1821.3,1820.5,3.2078]
[1746169783594,3.2078,1820.9,1820.2,41.67160064]
[1746169783798,1.09838,1820.4,1820.3,1.8445]
[1746169784102,1.09807,1821.0,1820.6,36.80827064]
[1746169784414,3.2078,1821.2,1820.6,36.80827064]
[1746169784608,1.09829,1820.6,1820.3,1.8445]
[1746169784905,3.2078,1821.1,1820.6,36.80827064]
[1746169785105,1.09817,1820.8,1820.6,36.80827064]
[1746169785296,3.2078,1821.8,1821.0,86.90255746]
[1746169785605,1.09782,1821.4,1821.1,38.65277064]
[1746169785800,3.2078,1821.8,1821.4,36.80827064]
[1746169786104,1.8566,1822.2,1821.7,36.80827064]
[1746169786105,3.2078,1822.2,1821.7,36.80827064]
[1746169786304,3.2078,1822.0,1821.4,20.0]
[1746169786506,1.09754,1821.8,1821.7,28.22760064]
[1746169786707,3.2078,1822.0,1821.5,28.22760064]
[1746169786910,3.2078,1821.7,1821.0,3.696]
[1746169787205,25.898183,1821.8,1821.5,28.22760064]
[1746169787707,3.696,1822.0,1821.7,50.09428682]
[1746169787896,3.696,1822.0,1821.9,72.42370446]
[1746169788096,0.10975141,1822.3,1821.9,79.32750446]
[1746169788412,0.10975141,1822.3,1822.2,72.42370446]
[1746169788808,0.10975141,1822.3,1822.2,78.52099446]
[1746169789007,0.10975141,1822.3,1822.2,72.42370446]
[1746169789302,27.99614833,1822.5,1822.2,73.15015255]
[1746169789508,15.43014833,1822.5,1822.4,62.62505255]
[1746169789709,15.43014833,1822.5,1822.4,67.45105255]
[1746169789913,15.43014833,1822.5,1822.4,72.45105255]
[1746169790216,15.43014833,1822.5,1822.4,71.14705255]
[1746169790399,1.09703,1822.7,1822.4,71.14705255]
[1746169790707,20.98541277,1822.8,1822.6,50.03380489]
[1746169790913,20.98541277,1822.8,1822.7,50.03380489]
[1746169791412,25.98541277,1822.8,1822.3,0.01387253]
[1746169791606,1.09717,1822.4,1822.3,0.01387253]
[1746169792005,4.30495,1822.5,1822.3,9.75204251]
[1746169792201,4.30493,1822.5,1822.4,33.25919915]
[1746169792406,1.09711,1822.5,1822.4,33.25919915]
[1746169792607,8.2078,1822.5,1821.8,3.2078]
[1746169792808,1.09736,1822.1,1822.0,33.25919915]
[1746169793008,14.68991848,1822.4,1822.2,33.25919915]
[1746169793215,14.68991848,1822.4,1822.3,35.11769915]
[1746169794103,14.68991848,1822.4,1822.3,38.81369915]
[1746169794509,14.68991848,1822.4,1822.3,44.91092915]
[1746169794815,0.69951992,1822.4,1822.3,39.91092915]
[1746169795010,0.69951992,1822.4,1822.3,18.92317481]
[1746169795218,1.79668992,1822.4,1822.3,17.82594481]
[1746169795418,0.69951992,1822.4,1822.3,17.82594481]
[1746169795810,0.69951992,1822.4,1822.3,18.92317481]
[1746169796211,0.69951992,1822.4,1822.3,23.92317481]
[1746169796417,5.28799917,1822.5,1822.4,1.09717]
[1746169796620,5.28799917,1822.5,1822.4,15.22711481]
[1746169796816,5.28799917,1822.5,1822.4,20.22711481]
[1746169797318,5.28799917,1822.5,1822.4,23.92311481]
[1746169797518,5.28799917,1822.5,1822.4,4.79317]
[1746169797720,5.28799917,1822.5,1822.4,18.92311481]
[1746169798119,5.28799917,1822.5,1822.4,23.92311481]
[1746169798321,5.28799917,1822.5,1822.4,20.86411481]
[1746169798519,3.5243427,1822.7,1822.4,19.76694481]
[1746169798720,4.6213627,1822.7,1822.5,14.12994481]
[1746169798922,3.5243427,1822.7,1822.6,15.95784481]
[1746169799431,4.6213327,1822.7,1822.6,15.95784481]
[1746169799821,4.6213327,1822.7,1822.6,1.8279]
[1746169801025,11.7321427,1822.7,1822.2,3.08297]
[1746169801214,1.09738,1822.1,1821.8,9.13229]
[1746169801523,1.09749,1821.9,1821.6,3.03851]
[1746169801816,3.2078,1822.1,1821.7,14.12994481]
[1746169802023,1.09769,1821.6,1821.4,0.0288]
[1746169802321,3.2078,1821.8,1821.4,0.0288]
[1746169802524,3.2078,1821.8,1821.7,15.22754481]
[1746169802722,3.696,1822.1,1821.9,1.09746]
[1746169803023,0.7045,1822.1,1822.0,15.22736481]
[1746169803218,1.09714,1822.5,1822.2,1.09726]
[1746169803420,13.11429917,1822.8,1822.0,17.33774481]
[1746169803421,1.09737,1822.1,1822.0,14.12994481]
[1746169803617,1.09736,1822.1,1822.0,14.12994481]
[1746169803813,1.09728,1822.3,1822.0,15.22734481]
[1746169804014,3.2078,1822.7,1822.2,15.22720481]
[1746169804214,1.09714,1822.5,1822.3,15.22717481]
[1746169804518,12.03414808,1822.6,1822.2,14.12994481]
[1746169804825,1.09727,1822.3,1822.1,14.12994481]
[1746169805023,1.09727,1822.3,1822.2,1.9557]
[1746169805222,1.09742,1822.0,1821.8,1.8242]
[1746169805523,1.09748,1821.9,1821.8,1.9557]
[1746169805923,11.0307,1822.2,1821.8,1.9557]
[1746169805924,13.77404,1822.2,1821.8,16.08564481]
[1746169806123,3.2078,1822.0,1821.4,4.8558]
[1746169806318,3.2078,1821.8,1821.4,0.0288]
[1746169806520,1.09772,1821.5,1821.1,1.12753829]
[1746169806719,3.2078,1821.4,1821.3,1.09784]
[1746169806927,1.09775,1821.5,1821.4,14.12994481]
[1746169807429,1.09776,1821.5,1821.2,1.09788]
[1746169807730,1.0979,1821.2,1821.0,4.828]
[1746169807927,3.2078,1821.3,1821.1,14.12994481]
[1746169808230,1.09779,1821.4,1821.2,14.12994481]
[1746169808420,1.09778,1821.4,1821.3,14.12994481]
[1746169808621,1.09796,1821.2,1821.1,14.12994481]
[1746169808820,1.09789,1821.3,1821.1,14.12994481]
[1746169809022,1.09775,1821.5,1821.3,14.12994481]
[1746169809217,1.09778,1821.4,1821.3,14.12994481]
[1746169809420,1.09785,1821.3,1820.9,6.6611]
[1746169809730,3.2078,1821.2,1821.1,1.09795]
[1746169809926,3.2078,1821.4,1821.3,15.22774481]
[1746169810124,3.2078,1821.4,1821.3,14.12994481]
[1746169810328,3.2078,1821.4,1821.0,1.9501]
[1746169810630,1.09796,1821.1,1821.0,1.9501]
[1746169810925,3.2078,1821.2,1821.0,3.04812]
[1746169811116,4.30572,1821.2,1821.1,14.12994481]
[1746169811318,1.0981,1820.9,1820.7,5.92718]
[1746169811626,1.09793,1821.2,1821.1,14.12994481]
[1746169811821,3.2078,1821.4,1821.1,14.12994481]
[1746169812130,3.2078,1821.4,1820.9,2.74514]
[1746169812131,8.48523538,1821.4,1821.3,14.12994481]
[1746169812326,9.58301538,1821.4,1821.0,42.6466]
[1746169812632,6.37521538,1821.4,1821.2,1.09787]
[1746169812923,6.37521538,1821.4,1821.0,42.6466]
[1746169812924,1.09784,1821.3,1821.1,1.09793]
[1746169813224,8.48523538,1821.4,1821.0,47.4756]
[1746169813225,5.0998,1821.4,1821.2,1.09785]
[1746169813425,5.0998,1821.4,1821.0,1.8466]
[1746169813426,3.2078,1821.3,1821.0,1.8466]
[1746169813730,5.0998,1821.4,1821.2,1.09786]
[1746169814125,5.0998,1821.4,1821.0,1.8466]
[1746169814325,1.892,1821.4,1821.0,1.8466]
[1746169814527,1.892,1821.4,1821.3,1.09784]
[1746169814931,1.892,1821.4,1821.2,1.09786]
[1746169815229,1.892,1821.4,1821.3,1.09784]
[1746169815631,9.58291538,1821.6,1821.3,1.09784]
[1746169815632,2.35890466,1821.6,1821.5,1.09772]
[1746169816134,2.35890466,1821.6,1821.5,3.696]
[1746169816332,2.35890466,1821.6,1821.5,4.79372]
[1746169816532,9.29820466,1821.6,1821.5,4.79372]
[1746169816729,10.39586466,1821.6,1821.5,3.696]
[1746169816931,14.03198575,1821.6,1821.5,3.696]
[1746169817231,9.29820466,1821.6,1821.4,1.09772]
[1746169817429,3.63617138,1821.5,1821.1,4.83]
[1746169817733,1.9447,1821.4,1821.3,1.09784]
[1746169817933,5.1525,1821.4,1821.2,1.09786]
[1746169818129,10.1525,1821.4,1821.3,1.09784]
[1746169818725,1.9447,1821.4,1821.3,1.09784]
[1746169818929,5.1525,1821.4,1821.3,1.09784]
[1746169819223,1.09749,1821.9,1821.3,11.9038]
[1746169819429,3.2078,1821.6,1821.5,1.09768]
[1746169819630,7.03658051,1821.7,1821.3,2.7446]
[1746169819833,1.8659,1821.6,1821.5,1.09772]
[1746169820330,1.09772,1821.5,1821.0,1.8466]
[1746169820535,3.2078,1821.2,1821.1,1.09796]
[1746169820931,5.0737,1821.4,1821.3,1.09784]
[1746169821125,10.50210589,1821.4,1821.0,2.94456]
[1746169821334,3.2078,1821.2,1821.1,1.09795]
[1746169821730,1.8659,1821.4,1821.3,1.09784]
[1746169821935,1.8659,1821.4,1821.1,40.8]
[1746169821936,5.0737,1821.4,1821.2,1.09786]
[1746169822229,5.0737,1821.4,1821.3,1.09784]
[1746169822432,5.0737,1821.4,1821.2,1.09785]
[1746169822631,1.8659,1821.4,1821.3,1.09784]
[1746169823032,1.8659,1821.4,1821.3,5.82584]
[1746169823231,5.03e-06,1821.6,1821.5,1.09772]
[1746169823437,5.03e-06,1821.6,1821.5,5.82572]
[1746169823635,5.03e-06,1821.6,1821.5,46.62572]
[1746169823836,1.09755,1821.8,1821.6,1.09764]
[1746169824034,3.2078,1821.7,1821.3,3.696]
[1746169824342,3.2078,1821.5,1821.3,1.09778]
[1746169824635,3.2078,1821.5,1821.4,41.89778]
[1746169824840,1.0976,1821.7,1821.4,40.8]
[1746169825040,4.3054,1821.7,1821.4,1.09773]
[1746169825240,9.30543,1821.7,1821.5,1.09767]
[1746169825628,9.30543,1821.7,1821.4,4.79374]
[1746169825834,3.2078,1821.5,1821.4,4.79378]
[1746169826039,3.2078,1821.5,1821.4,3.696]
[1746169826235,8.2078,1821.5,1821.2,5.82585]
[1746169826441,3.2078,1821.3,1820.7,6.6995]
[1746169826640,1.09792,1821.2,1820.9,1.09804]
[1746169826942,5.0369,1821.2,1821.0,1.09796]
[1746169827141,10.0369,1821.2,1821.1,1.09796]
[1746169827335,11.13484,1821.2,1820.9,1.09803]
[1746169827541,8.2078,1821.2,1821.1,1.09796]
[1746169827737,11.44170941,1821.5,1821.4,1.09778]
[1746169828244,10.05633941,1821.5,1821.4,4.79378]
[1746169828743,10.05633941,1821.5,1821.4,7.92638]
[1746169828942,5.72244941,1821.5,1821.4,7.92638]
[1746169829140,5.72244941,1821.5,1821.4,6.72488]
[1746169829340,5.72244941,1821.5,1821.4,7.92888]
[1746169829540,2.28501941,1821.5,1821.4,7.92888]
[1746169829836,9.41e-06,1821.5,1821.4,7.92888]
[1746169830044,8.89928446,1821.6,1821.5,1.09772]
[1746169830242,7.22499446,1821.6,1821.5,2.30172]
[1746169830542,3.40016446,1821.6,1821.5,7.30172]
[1746169830735,30.82294031,1821.8,1821.7,1.0976]
[1746169830935,30.82294031,1821.8,1821.7,5.8246]
[1746169831138,29.61055031,1821.8,1821.7,9.7936]
[1746169831436,12.66556031,1821.8,1821.7,14.5206]
[1746169831641,10.76601031,1821.8,1821.7,15.7246]
[1746169831843,8.70987031,1821.8,1821.7,15.7246]
[1746169832245,1.03554728,1821.8,1821.7,15.7246]
[1746169832443,1.03554728,1821.8,1821.7,10.7246]
[1746169832637,7.28e-06,1821.8,1821.7,56.5246]
[1746169832838,7.28e-06,1821.8,1821.7,51.5246]
[1746169833037,7.28e-06,1821.8,1821.7,51.7976]
[1746169833233,7.28e-06,1821.8,1821.7,56.5246]
[1746169833440,7.19703976,1822.0,1821.9,1.09748]
[1746169833642,7.19703976,1822.0,1821.9,4.30528]
[1746169834043,7.19703976,1822.0,1821.7,53.6348]
[1746169834345,7.19703976,1822.0,1821.9,3.696]
[1746169834543,5.90242976,1822.0,1821.9,4.79348]
[1746169834745,4.67228976,1822.0,1821.9,4.79348]
[1746169835043,0.80683976,1822.0,1821.9,8.00128]
[1746169835344,9.76e-06,1822.0,1821.9,5.99798]
[1746169835745,1.09712,1822.5,1822.3,1.09721]
[1746169836042,3.2078,1822.4,1822.2,4.727]
[1746169836344,4.30501,1822.4,1822.1,5.82432]
[1746169836544,3.2078,1822.2,1822.1,5.82432]
[1746169836748,8.2078,1822.4,1822.2,1.09729]
[1746169836954,8.2078,1822.4,1822.3,1.09723]
[1746169837147,5.0,1822.4,1822.3,4.79323]
[1746169837350,8.2078,1822.4,1822.3,4.79323]
[1746169838548,8.2078,1822.4,1822.3,3.696]
[1746169838843,9.30497,1822.4,1822.3,3.696]
[1746169839035,8.2078,1822.4,1822.3,4.79323]
[1746169840142,8.2078,1822.4,1822.3,1.09723]
[1746169841248,8.2078,1822.4,1822.3,4.79323]
[1746169842443,5.0,1822.4,1822.3,4.79323]
[1746169842855,1.8521,1822.5,1822.4,1.09717]
[1746169843051,3.76458,1822.9,1822.8,1.09693]
[1746169843945,4.08198609,1823.1,1822.8,5.0]
[1746169844155,4.08198609,1823.1,1823.0,1.09681]
[1746169844345,4.08198609,1823.1,1823.0,5.82281]
[1746169844545,4.08198609,1823.1,1823.0,46.62281]
[1746169844747,7.84656609,1823.1,1823.0,45.526]
[1746169844944,9.77736609,1823.1,1823.0,45.526]
[1746169845147,9.77736609,1823.1,1823.0,50.31881]
[1746169845858,5.69538,1823.1,1823.0,9.51881]
[1746169846053,5.69538,1823.1,1823.0,3.696]
[1746169846253,11.79213,1823.1,1823.0,3.696]
[1746169847357,1.09684,1823.0,1822.7,1.09695]
[1746169847657,2.99949,1822.9,1822.7,1.09695]
[1746169847853,4.30474,1822.8,1822.6,5.82203]
[1746169848048,1.9026,1822.7,1822.4,51.311]
[1746169848244,1.9026,1822.7,1822.6,1.09705]
[1746169848449,5.66718,1822.7,1822.4,96.689]
[1746169848655,4.30489,1822.6,1822.4,97.78616]
[1746169848858,1.9026,1822.5,1822.4,97.78616]
[1746169849057,1.9026,1822.5,1822.4,46.47516]
[1746169849358,5.66718,1822.5,1822.4,50.17116]
[1746169849959,5.66718,1822.5,1822.4,45.59316]
[1746169850646,1.9026,1822.5,1822.4,4.79316]
[1746169851052,1.9026,1822.5,1822.4,45.59316]
[1746169851653,1.9026,1822.5,1822.4,46.82106]
[1746169851854,3.2078,1822.8,1822.7,1.09699]
[1746169852250,3.2078,1822.8,1822.7,9.37099]
[1746169853059,3.2078,1822.8,1822.7,4.79299]
[1746169853262,3.2078,1822.8,1822.7,9.37099]
[1746169854961,3.8636,1823.1,1823.0,1.09681]
[1746169855153,7.62818,1823.1,1823.0,1.09681]
[1746169855559,5.68508,1823.1,1823.0,1.09681]
[1746169855955,1.9205,1823.1,1823.0,1.09681]
[1746169856153,1.9205,1823.1,1823.0,4.79281]
[1746169856356,1.9205,1823.1,1823.0,9.36981]
[1746169858363,8.89288,1823.1,1823.0,9.36981]
[1746169858861,5.68508,1823.1,1823.0,4.79281]
[1746169859262,1.9205,1823.1,1823.0,4.79281]
[1746169859663,3.2078,1823.3,1823.2,1.09669]
[1746169860159,3.2078,1823.3,1823.2,4.79269]